fUSD/lending_fUSD_20260308
["ID","MTS","AMOUNT","RATE_DAILY","PERIOD"]
[407960987,1772934644521,-481.5,0.00025859,2]
[407960988,1772934644531,-150.0,0.0002589,2]
[407960989,1772934644540,-506.0,0.00026,10]
[407960990,1772934644550,-252.91,0.00026,2]
[407960991,1772934644560,-481.5,0.00026018,2]
[407960992,1772934644569,-481.5,0.00026176,2]
[407960993,1772934644579,-481.5,0.00026335,2]
[407960994,1772934644590,-2250.0,0.00026465,2]
[407960995,1772934644599,-2236.0,0.00026465,2]
[407960996,1772934644609,-481.5,0.00026493,2]
[407960997,1772934644618,-2000.0,0.000266,2]
[407960998,1772934644628,-481.54511531,0.00026652,2]
[407960999,1772934644637,-974.78108466,0.00026841,2]
[407961000,1772934644647,-150.0,0.00027185,2]
[407961001,1772934644656,-791.18015443,0.00027331,2]
[407961002,1772934644666,-1000.0,0.00027397,20]
[407961003,1772934644675,-14008.13,0.00027397,10]
[407961004,1772934644685,-11673.44,0.00027397,10]
[407961005,1772934644695,-300.0,0.00027397,2]
[407961006,1772934644705,-9727.87,0.00027397,10]
[407961007,1772934644714,-160.69,0.000274,7]
[407961008,1772934644723,-208.07,0.000274,7]
[407961009,1772934644740,-1016.03,0.000274,14]
[407961010,1772934644751,-525.39,0.000274,7]
[407961011,1772934644761,-518.0,0.00027869,10]
[407961012,1772934644771,-272.0,0.00027869,10]
[407961013,1772934644782,-1161.88,0.00027984,30]
[407961014,1772934644792,-161.0,0.00028538,2]
[407961015,1772934644801,-150.0,0.00028544,2]
[407961016,1772934644811,-235.37,0.00029096,2]
[407961017,1772934644821,-6016.57218811,0.00029959,2]
[407961018,1772934644831,-150.0,0.00029971,2]
[407961019,1772934644840,-3109.0,0.00030137,120]
[407961020,1772934644850,-2000.0,0.000303,2]
[407961021,1772934644860,-506.0,0.000305,14]
[407961022,1772934644870,-1161.88,0.0003092,30]
[407961023,1772934644880,-150.0,0.0003147,2]
[407961024,1772934644890,-250.0,0.00031901,21]
[407961025,1772934644899,-6027.178,0.00032,120]
[407961026,1772934644909,-152.0,0.00032323,2]
[407961027,1772934644919,-974.78108466,0.00032606,2]
[407961028,1772934644931,-525.39,0.000327,7]
[407961029,1772934644942,-275.25252548,0.00032877,2]
[407961030,1772934644952,-508.9676704,0.00032994,25]
[407961031,1772934644961,-150.0,0.00033043,2]
[407961032,1772934644971,-160.69,0.000332,14]
[407961033,1772934644982,-619.0,0.00033774,2]
[407961034,1772934644992,-1044.726,0.00033774,2]
[407961035,1772934645002,-931.786,0.00033774,2]
[407961036,1772934645013,-3511.147,0.00033774,2]
[407961037,1772934645022,-2460.0,0.00033774,2]
[407961038,1772934645033,-414.0,0.00033774,2]
[407961039,1772934645042,-1161.88,0.00033855,30]
[407961040,1772934645056,-2000.0,0.00034,2]
[407961041,1772934645076,-2000.0,0.00034,7]
[407961042,1772934645087,-2012.0,0.000341,7]
[407961043,1772934645097,-183.07748016,0.00034258,2]
[407961044,1772934645106,-294.25844556,0.000344,2]
[407961045,1772934645115,-846.69,0.000346,30]
[407961046,1772934645125,-250.0,0.00034655,2]
[407961047,1772934645135,-234.689,0.00034655,2]
[407961048,1772934645147,-222.246,0.00034655,2]
[407961049,1772934645157,-219.836,0.00034655,2]
[407961050,1772934645166,-161.268,0.00034655,2]
[407961051,1772934645176,-250.0,0.00034655,2]
[407961052,1772934645187,-150.139,0.00034655,2]
[407961053,1772934645197,-192.758,0.00034655,2]
[407961054,1772934645207,-165.394,0.00034655,2]
[407961055,1772934645216,-214.041,0.00034655,2]
[407961056,1772934645226,-250.0,0.00034655,2]
[407961057,1772934645235,-177.0,0.00034655,2]
[407961058,1772934645246,-236.404,0.00034655,2]
[407961059,1772934645255,-150.0,0.00034696,2]
[407961060,1772934645265,-1500.0,0.00034795,2]
[407961061,1772934645275,-525.39,0.000349,14]
[407961062,1772934645284,-775.92453861,0.000349,2]
[407961063,1772934645293,-1658.13611066,0.000349,2]
[407961064,1772934645303,-876.33,0.00034936,2]
[407961065,1772934645312,-6016.57218811,0.00034944,2]
[407961066,1772934645322,-506.0,0.00035,18]
[407961067,1772934645331,-161.0,0.0003538,120]
[407961068,1772934645341,-181.85312485,0.00035616,2]
[407961069,1772934645354,-372.62543569,0.00036,120]
[407961070,1772934645364,-160.0,0.00036,30]
[407961071,1772934645373,-250.0,0.00036049,39]
[407961072,1772934645383,-321.0,0.00036275,2]
[407961073,1772934645484,-150.0,0.0003643,2]
[407961074,1772934645494,-156.91,0.00036591,2]
[407961075,1772934645504,-619.0,0.00036774,2]
[407961076,1772934645516,-1042.0,0.00036774,2]
[407961077,1772934645525,-2460.0,0.00036774,2]
[407961078,1772934645535,-414.0,0.00036774,2]
[407961079,1772934645544,-1161.88,0.00036791,30]
[407961080,1772934645554,-4653.50054308,0.000372,120]
[407961081,1772934645563,-4653.50054308,0.000372,120]
[407961082,1772934645573,-4653.50054308,0.000372,120]
[407961083,1772934645582,-160.0,0.00037397,30]
[407961084,1772934645591,-150.0,0.00037655,2]
[407961085,1772934645601,-2000.0,0.000377,2]
[407961086,1772934645610,-666.96470989,0.00037753,120]
[407961087,1772934645619,-2287.0,0.00037864,5]
[407961088,1772934645629,-525.39,0.000379,14]
[407961089,1772934645638,-10000.0,0.00038,120]
[407961090,1772934645648,-154.19,0.00038034,30]
[407961091,1772934645658,-430.65,0.00038034,30]
[407961092,1772934645667,-260.34389618,0.000381,33]
[407961093,1772934645677,-156.90336832,0.00038183,2]
[407961094,1772934645687,-150.0,0.00038252,2]
[407961095,1772934645697,-190.0,0.00038356,30]
[407961096,1772934645706,-1999.0,0.00038356,120]
[407961097,1772934645720,-974.78108466,0.00038371,2]
[407961098,1772934645729,-250.0,0.00038683,53]
[407961099,1772934645739,-1999.0,0.00038904,120]
[407961100,1772934645749,-164.0,0.00039267,90]
[407961101,1772934645759,-1999.0,0.00039452,120]
[407961102,1772934645768,-506.0,0.000395,22]
[407961103,1772934645778,-1161.88,0.00039726,30]
[407961104,1772934645788,-151.0,0.00039732,120]
[407961105,1772934645797,-151.0,0.00039732,120]
[407961106,1772934645807,-619.0,0.00039774,2]
[407961107,1772934645816,-1042.0,0.00039774,2]
[407961108,1772934645826,-2446.959,0.00039774,2]
[407961109,1772934645836,-414.0,0.00039774,2]
[407961110,1772934645845,-6016.57218811,0.00039929,2]
[407961111,1772934645854,-532.89155617,0.0004,120]
[407961112,1772934645864,-341.62,0.0004,120]
[407961113,1772934645873,-693.07,0.0004,120]
[407961114,1772934645882,-195.27,0.0004,120]
[407961115,1772934645892,-366.53,0.0004,120]
[407961116,1772934645901,-151.0,0.0004,120]
[407961117,1772934645910,-154.0,0.0004,120]
[407961118,1772934645921,-1999.0,0.0004,120]
[407961119,1772934645931,-150.0,0.00040165,2]
[407961120,1772934645940,-1281.94636617,0.00040219,30]
[407961121,1772934645949,-525.39,0.000403,14]
[407961122,1772934645958,-250.0,0.00040354,74]
[407961123,1772934645968,-1281.94636617,0.00040384,30]
[407961124,1772934645977,-1999.0,0.00040547,120]
[407961125,1772934645987,-1281.94636617,0.00040548,30]
[407961126,1772934645996,-1908.24427703,0.00040592,2]
[407961127,1772934646007,-151.23763739,0.00040592,2]
[407961128,1772934646017,-209.40437684,0.00040592,2]
[407961129,1772934646026,-1467.33899104,0.00040592,2]
[407961130,1772934646035,-250.0,0.00040592,2]
[407961131,1772934646045,-721.12765535,0.00040592,2]
[407961132,1772934646057,-250.0,0.00040592,2]
[407961133,1772934646067,-250.0,0.00040592,2]
[407961134,1772934646076,-250.0,0.00040592,2]
[407961135,1772934646085,-250.0,0.00040592,2]
[407961136,1772934646096,-250.0,0.00040592,2]
[407961137,1772934646106,-250.0,0.00040592,2]
[407961138,1772934646116,-250.0,0.00040592,2]
[407961139,1772934646125,-250.0,0.00040592,2]
[407961140,1772934646134,-500.0,0.00040592,2]
[407961141,1772934646145,-250.0,0.00040592,2]
[407961142,1772934646155,-2500.0,0.00040592,2]
[407961143,1772934646165,-250.0,0.00040592,2]
[407961144,1772934646176,-250.0,0.00040592,2]
[407961145,1772934646187,-250.0,0.00040592,2]
[407961146,1772934646197,-2500.0,0.00040592,2]
[407961147,1772934646207,-250.0,0.00040592,2]
[407961148,1772934646216,-250.0,0.00040592,2]
[407961149,1772934646225,-2500.0,0.00040592,2]
[407961150,1772934646235,-250.0,0.00040592,2]
[407961151,1772934646246,-250.0,0.00040592,2]
[407961152,1772934646257,-2500.0,0.00040592,2]
[407961153,1772934646268,-250.0,0.00040592,2]
[407961154,1772934646278,-1107.82990857,0.00040592,2]
[407961155,1772934646287,-250.0,0.00040592,2]
[407961156,1772934646296,-249.18944466,0.00040592,2]
[407961157,1772934646305,-3000.0,0.00040592,2]
[407961158,1772934646315,-3000.0,0.00040592,2]
[407961159,1772934646332,-3063.09918979,0.00040592,2]
[407961160,1772934646343,-578.20924308,0.00040592,2]
[407961161,1772934646353,-250.0,0.00040592,2]
[407961162,1772934646362,-250.0,0.00040592,2]
[407961163,1772934646372,-250.0,0.00040592,2]
[407961164,1772934646381,-250.0,0.00040592,2]
[407961165,1772934646391,-250.0,0.00040592,2]
[407961166,1772934646401,-1000.0,0.00040592,2]
[407961167,1772934646410,-258.79012954,0.00040592,2]
[407961168,1772934646420,-1000.0,0.00040592,2]
[407961169,1772934646429,-250.0,0.00040592,2]
[407961170,1772934646438,-174.61919141,0.00040592,2]
[407961171,1772934646448,-939.93461961,0.00040592,2]
[407961172,1772934646457,-250.0,0.00040592,2]
[407961173,1772934646467,-250.0,0.00040592,2]
[407961174,1772934646477,-1000.0,0.00040592,2]
[407961175,1772934646486,-250.0,0.00040592,2]
[407961176,1772934646496,-760.56776805,0.00040592,2]
[407961178,1772934646506,-250.0,0.00040592,2]
[407961180,1772934646516,-693.3919763,0.00040592,2]
[407961181,1772934646525,-151.0,0.00040592,2]
[407961182,1772934646535,-250.0,0.00040592,2]
[407961183,1772934646544,-250.0,0.00040592,2]
[407961184,1772934646554,-250.0,0.00040592,2]
[407961185,1772934646564,-250.0,0.00040592,2]
[407961186,1772934646574,-250.0,0.00040592,2]
[407961187,1772934646584,-743.50770149,0.00040592,2]
[407961188,1772934646594,-250.0,0.00040592,2]
[407961189,1772934646603,-209.40437684,0.00040592,2]
[407961190,1772934646613,-200.0,0.00040592,2]
[407961191,1772934646623,-500.0,0.00040592,2]
[407961192,1772934646633,-262.90206542,0.00040592,2]
[407961193,1772934646643,-500.0,0.00040592,2]
[407961194,1772934646655,-500.0,0.00040592,2]
[407961195,1772934646664,-693.3919763,0.00040592,2]
[407961196,1772934646674,-500.0,0.00040592,2]
[407961197,1772934646683,-500.0,0.00040592,2]
[407961198,1772934646692,-500.0,0.00040592,2]
[407961199,1772934646702,-500.0,0.00040592,2]
[407961200,1772934646712,-500.0,0.00040592,2]
[407961201,1772934646724,-500.0,0.00040592,2]
[407961202,1772934646734,-500.0,0.00040592,2]
[407961203,1772934646744,-500.0,0.00040592,2]
[407961204,1772934646754,-719.04747942,0.00040647,2]
[407961205,1772934646764,-151.0,0.00040647,2]
[407961206,1772934646773,-745.65223616,0.00040702,2]
[407961207,1772934646783,-151.0,0.00040702,2]
[407961208,1772934646793,-1281.94636617,0.00040712,30]
[407961209,1772934646803,-773.2413689,0.00040757,2]
[407961210,1772934646812,-151.0,0.00040757,2]
[407961211,1772934646822,-801.85129955,0.00040812,2]
[407961212,1772934646831,-284.51020011,0.00040812,2]
[407961213,1772934646841,-4653.50054308,0.00040859,120]
[407961214,1772934646851,-831.51979763,0.00040867,2]
[407961215,1772934646861,-1281.94636617,0.00040877,30]
[407961216,1772934646871,-862.28603014,0.00040922,2]
[407961217,1772934646881,-1084.0,0.0004095,60]
[407961218,1772934646892,-894.19061326,0.00040977,2]
[407961219,1772934646904,-652.60387444,0.00041,30]
[407961220,1772934646913,-927.27566595,0.00041032,2]
[407961221,1772934646924,-1281.94636617,0.00041041,30]
[407961222,1772934646933,-961.58486559,0.00041087,2]
[407961223,1772934646943,-1999.0,0.00041095,120]
[407961224,1772934646952,-847.0,0.00041096,120]
[407961225,1772934646962,-200.805006,0.00041096,120]
[407961226,1772934646971,-157.227385,0.00041096,120]
[407961227,1772934646980,-151.0,0.00041096,120]
[407961228,1772934646989,-153.836896,0.00041096,120]
[407961229,1772934647000,-151.0,0.00041096,120]
[407961230,1772934647010,-222.759504,0.00041096,120]
[407961231,1772934647022,-205.726439,0.00041096,120]
[407961232,1772934647031,-151.0,0.00041096,120]
[407961233,1772934647042,-151.0,0.00041096,120]
[407961234,1772934647052,-151.0,0.00041096,120]
[407961235,1772934647062,-261.42041837,0.00041096,120]
[407961236,1772934647076,-151.0,0.00041096,120]
[407961237,1772934647085,-151.000011,0.00041096,120]
[407961238,1772934647096,-284.805552,0.00041096,120]
[407961239,1772934647108,-151.0,0.00041096,120]
[407961240,1772934647119,-151.0,0.00041096,120]
[407961241,1772934647129,-151.0,0.00041096,120]
[407961242,1772934647139,-151.0,0.00041096,120]
[407961243,1772934647150,-233.048574,0.00041096,120]
[407961244,1772934647161,-152.463446,0.00041096,120]
[407961245,1772934647170,-178.53464,0.00041096,120]
[407961246,1772934647180,-151.0,0.00041096,30]
[407961247,1772934647190,-151.0,0.00041096,30]
[407961248,1772934647199,-204.069005,0.00041096,30]
[407961249,1772934647209,-151.0,0.00041096,120]
[407961250,1772934647218,-151.0,0.00041096,120]
[407961251,1772934647229,-151.0,0.00041096,120]
[407961252,1772934647239,-151.0,0.00041096,120]
[407961253,1772934647250,-180.296574,0.00041096,120]
[407961254,1772934647260,-200.080946,0.00041126,35]
[407961255,1772934647271,-217.15233878,0.0004114,2]
[407961256,1772934647281,-500.0,0.0004114,2]
[407961257,1772934647291,-181.08010149,0.0004114,2]
[407961258,1772934647301,-771.01748645,0.0004114,2]
[407961259,1772934647312,-212.01600458,0.0004114,2]
[407961260,1772934647322,-200.0,0.0004114,2]
[407961261,1772934647333,-272.62944185,0.0004114,2]
[407961262,1772934647345,-719.04747942,0.0004114,2]
[407961263,1772934647355,-997.16350561,0.00041142,2]
[407961264,1772934647365,-151.0,0.000412,120]
[407961265,1772934647375,-154.0,0.000412,120]
[407961266,1772934647385,-1281.94636617,0.00041205,30]
[407961267,1772934647395,-162.0,0.00041236,11]
[407961268,1772934647405,-1281.94636617,0.0004137,30]
[407961269,1772934647414,-151.0,0.0004138,120]
[407961270,1772934647425,-1938.0,0.000414,2]
[407961271,1772934647434,-250.0,0.00041415,91]
[407961272,1772934647443,-525.39,0.000415,14]
[407961273,1772934647453,-1281.94636617,0.00041507,30]
[407961274,1772934647463,-1999.0,0.00041643,120]
[407961275,1772934647472,-847.0,0.00041644,120]
[407961276,1772934647482,-1281.94636617,0.00041671,30]
[407961277,1772934647491,-216.01053215,0.00041688,2]
[407961278,1772934647501,-500.0,0.00041688,2]
[407961279,1772934647510,-187.78006525,0.00041688,2]
[407961280,1772934647519,-799.54513345,0.00041688,2]
[407961281,1772934647528,-200.0,0.00041688,2]
[407961282,1772934647537,-282.71673119,0.00041688,2]
[407961283,1772934647546,-217.40856809,0.00041688,2]
[407961284,1772934647555,-234.52795497,0.00041781,7]
[407961285,1772934647564,-1392.41180844,0.00041781,7]
[407961286,1772934647574,-1281.94636617,0.00041836,30]
[407961287,1772934647583,-4497.0,0.00042,120]
[407961288,1772934647592,-1281.94636617,0.00042,30]
[407961289,1772934647601,-250.0,0.00042088,96]
[407961290,1772934647610,-150.0,0.00042173,120]
[407961291,1772934647620,-1999.0,0.00042191,120]
[407961292,1772934647630,-847.0,0.00042192,120]
[407961293,1772934647639,-222.8681,0.0004222,7]
[407961294,1772934647649,-500.0,0.00042236,2]
[407961295,1772934647659,-194.72792766,0.00042236,2]
[407961296,1772934647668,-241.22573238,0.00042236,2]
[407961297,1772934647677,-200.0,0.00042236,2]
[407961298,1772934647686,-293.17725025,0.00042236,2]
[407961299,1772934647696,-1084.0,0.000423,60]
[407961300,1772934647705,-852.0,0.00042316,16]
[407961301,1772934647715,-151.0,0.000424,120]
[407961302,1772934647724,-500.0,0.00042438,120]
[407961303,1772934647734,-300.0,0.00042439,2]
[407961304,1772934647743,-300.0,0.00042439,2]
[407961305,1772934647752,-300.0,0.00042439,2]
[407961306,1772934647762,-300.0,0.00042439,2]
[407961307,1772934647771,-300.0,0.00042439,2]
[407961308,1772934647781,-300.0,0.00042439,2]
[407961309,1772934647790,-300.0,0.00042439,2]
[407961310,1772934647799,-1052.55213807,0.00042439,2]
[407961311,1772934647809,-307.80158692,0.00042439,2]
[407961312,1772934647818,-494.45891547,0.00042439,2]
[407961313,1772934647826,-300.26010296,0.00042439,2]
[407961314,1772934647836,-309.12992208,0.00042439,2]
[407961315,1772934647845,-300.81448817,0.00042439,2]
[407961316,1772934647854,-461.25611281,0.00042439,2]
[407961317,1772934647863,-300.0,0.00042439,2]
[407961318,1772934647872,-303.27958222,0.00042439,2]
[407961319,1772934647882,-300.22656872,0.00042439,2]
[407961320,1772934647892,-300.0,0.00042439,2]
[407961321,1772934647902,-308.05262394,0.00042439,2]
[407961322,1772934647911,-300.32789164,0.00042439,2]
[407961323,1772934647921,-300.30200946,0.00042439,2]
[407961324,1772934647931,-301.13802373,0.00042439,2]
[407961325,1772934647941,-300.22737511,0.00042439,2]
[407961326,1772934647950,-300.48436846,0.00042439,2]
[407961327,1772934647960,-300.21180886,0.00042439,2]
[407961328,1772934647970,-1088.72480833,0.00042439,2]
[407961329,1772934647979,-300.37362369,0.00042439,2]
[407961330,1772934647990,-300.14575461,0.00042439,2]
[407961331,1772934647999,-300.14056894,0.00042439,2]
[407961332,1772934648008,-430.38188399,0.00042439,2]
[407961333,1772934648017,-1129.09,0.000425,120]
[407961334,1772934648026,-151.0,0.000425,14]
[407961335,1772934648036,-154.0,0.000425,120]
[407961336,1772934648045,-1317.589,0.000425,64]
[407961337,1772934648057,-250.0,0.00042516,102]
[407961338,1772934648067,-150.0,0.00042546,120]
[407961339,1772934648076,-322.99,0.00042546,120]
[407961340,1772934648085,-500.0,0.00042575,120]
[407961341,1772934648096,-525.39,0.000426,14]
[407961342,1772934648107,-1161.88,0.00042661,120]
[407961343,1772934648117,-500.0,0.00042712,120]
[407961344,1772934648128,-1999.0,0.00042739,120]
[407961345,1772934648139,-847.0,0.0004274,120]
[407961346,1772934648148,-4000.0,0.0004274,14]
[407961347,1772934648158,-619.0,0.00042774,2]
[407961348,1772934648167,-1042.0,0.00042774,2]
[407961349,1772934648177,-414.0,0.00042774,2]
[407961350,1772934648187,-201.93286099,0.00042784,2]
[407961351,1772934648197,-200.0,0.00042784,2]
[407961352,1772934648207,-304.02480851,0.00042784,2]
[407961353,1772934648217,-250.0,0.00042787,109]
[407961354,1772934648227,-500.0,0.00042849,120]
[407961355,1772934648236,-250.0,0.00042959,115]
[407961356,1772934648246,-151.67059766,0.00042986,120]
[407961357,1772934648256,-250.0,0.00043068,120]
[407961358,1772934648266,-250.0,0.00043068,120]
[407961359,1772934648276,-250.0,0.00043068,120]
[407961360,1772934648286,-250.0,0.00043068,120]
[407961361,1772934648296,-250.0,0.00043068,120]
[407961362,1772934648306,-221.73,0.00043068,120]
[407961363,1772934648319,-160.0,0.00043194,90]
[407961364,1772934648330,-1999.0,0.00043287,120]
[407961365,1772934648340,-847.0,0.00043288,120]
[407961366,1772934648351,-760.41268726,0.00043331,2]
[407961367,1772934648361,-608.12342316,0.00043331,2]
[407961368,1772934648371,-209.40437684,0.00043332,2]
[407961369,1772934648381,-200.0,0.00043332,2]
[407961370,1772934648391,-315.27372642,0.00043332,2]
[407961371,1772934648402,-151.0,0.000436,120]
[407961372,1772934648411,-1084.0,0.0004365,60]
[407961373,1772934648421,-154.0,0.000437,120]
[407961374,1772934648431,-1759.35829233,0.00043835,120]
[407961375,1772934648441,-500.0,0.00043835,120]
[407961376,1772934648451,-847.0,0.00043836,120]
[407961377,1772934648462,-217.15233878,0.0004388,2]
[407961378,1772934648472,-200.0,0.0004388,2]
[407961379,1772934648483,-353.81473199,0.0004388,2]
[407961380,1772934648493,-274.80527322,0.000439,120]
[407961381,1772934648504,-150.0,0.00044,57]
[407961382,1772934648514,-361.8,0.00044,90]
[407961383,1772934648524,-506.0,0.00044,26]
[407961384,1772934648537,-525.39,0.00044,14]
[407961385,1772934648548,-275.0,0.000441,60]
[407961386,1772934648558,-974.78108466,0.00044135,14]
[407961387,1772934648568,-500.0,0.00044246,120]
[407961388,1772934648582,-150.0,0.00044281,120]
[407961389,1772934648592,-225.18697532,0.00044428,2]
[407961390,1772934648603,-200.0,0.00044428,2]
[407961391,1772934648612,-500.0,0.00044657,120]
[407961392,1772934648622,-4049.2354,0.00044708,30]
[407961393,1772934648632,-151.0,0.000448,120]
[407961394,1772934648643,-168.0,0.00044886,30]
[407961395,1772934648654,-1881.0341,0.000449,120]
[407961396,1772934648664,-154.0,0.000449,120]
[407961397,1772934648674,-6016.57218811,0.00044915,28]
[407961398,1772934648685,-182.90369888,0.00044976,2]
[407961399,1772934648696,-200.0,0.00044976,2]
[407961400,1772934648706,-382.15,0.00045,120]
[407961401,1772934648716,-1084.0,0.00045,60]
[407961402,1772934648725,-1699.21718979,0.00045,120]
[407961403,1772934648735,-5645.96373562,0.00045,120]
[407961404,1772934648749,-500.0,0.00045068,120]
[407961405,1772934648760,-938.8,0.0004507,120]
[407961406,1772934648770,-152.0,0.00045087,3]
[407961407,1772934648780,-1938.19809171,0.000451,2]
[407961408,1772934648791,-150.0,0.00045163,120]
[407961409,1772934648800,-150.0,0.0004518,120]
[407961410,1772934648811,-153.0,0.0004538,120]
[407961411,1772934648820,-500.0,0.00045479,120]
[407961412,1772934648830,-200.0,0.00045524,2]
[407961413,1772934648841,-1161.88,0.00045597,120]
[407961414,1772934648851,-150.0,0.00045684,120]
[407961415,1772934648861,-525.39,0.000457,14]
[407961416,1772934648871,-1043.4,0.00045707,120]
[407961417,1772934648881,-619.0,0.00045774,2]
[407961418,1772934648891,-1042.0,0.00045774,2]
[407961419,1772934648901,-414.0,0.00045774,2]
[407961420,1772934648911,-500.0,0.0004589,120]
[407961421,1772934648920,-321.94,0.000459,120]
[407961422,1772934648930,-470.37,0.000459,120]
[407961423,1772934648940,-2942.63914128,0.00046,120]
[407961424,1772934648954,-979.97120881,0.00046,120]
[407961425,1772934648965,-151.0,0.00046,120]
[407961426,1772934648975,-501.19190549,0.00046,120]
[407961427,1772934648986,-1082.42425901,0.00046,30]
[407961428,1772934648997,-168.0,0.00046031,2]
[407961429,1772934649008,-150.0,0.00046044,120]
[407961430,1772934649019,-200.0,0.00046072,2]
[407961431,1772934649029,-347.58614662,0.00046147,18]
[407961432,1772934649040,-347.58614661,0.00046147,18]
[407961433,1772934649051,-347.58614661,0.00046147,18]
[407961434,1772934649064,-347.58614661,0.00046147,18]
[407961435,1772934649076,-347.58614661,0.00046147,18]
[407961436,1772934649086,-347.58614661,0.00046147,18]
[407961437,1772934649096,-347.58614661,0.00046147,18]
[407961438,1772934649107,-347.58614661,0.00046147,18]
[407961439,1772934649117,-347.58614661,0.00046147,18]
[407961440,1772934649127,-347.58614661,0.00046147,18]
[407961441,1772934649137,-347.58614661,0.00046147,18]
[407961442,1772934649148,-154.0,0.000462,120]
[407961443,1772934649158,-151.0,0.00046235,120]
[407961444,1772934649169,-330.50819937,0.000463,15]
[407961445,1772934649180,-500.0,0.00046301,120]
[407961446,1772934649190,-1043.4,0.00046343,120]
[407961447,1772934649201,-1084.0,0.0004635,60]
[407961448,1772934649211,-150.0,0.00046415,120]
[407961449,1772934649222,-150.0,0.00046434,120]
[407961450,1772934649232,-150.0,0.00046448,120]
[407961451,1772934649242,-150.0,0.0004647,120]
[407961452,1772934649251,-21347.18,0.00046471,7]
[407961453,1772934649261,-150.0,0.00046495,120]
[407961454,1772934649273,-200.0,0.0004662,2]
[407961455,1772934649283,-876.33,0.00046651,120]
[407961456,1772934649293,-500.0,0.00046712,120]
[407961457,1772934649303,-347.58614661,0.00046771,18]
[407961458,1772934649314,-150.0,0.00046851,120]
[407961459,1772934649324,-1000.0,0.00046874,30]
[407961460,1772934649334,-199.84416805,0.000469,120]
[407961461,1772934649345,-192.03461732,0.000469,120]
[407961462,1772934649355,-1043.4,0.00046979,120]
[407961463,1772934649366,-15851.53334612,0.00047,120]
[407961464,1772934649376,-162.0,0.00047,120]
[407961465,1772934649387,-191.31272573,0.00047048,30]
[407961466,1772934649396,-3697.08,0.000471,7]
[407961467,1772934649406,-160.0,0.00047121,90]
[407961468,1772934649416,-527.04524501,0.00047123,120]
[407961469,1772934649427,-150.0,0.00047124,120]
[407961470,1772934649438,-151.0,0.00047145,14]
[407961471,1772934649448,-151.0,0.00047145,120]
[407961472,1772934649458,-677.46078637,0.00047147,30]
[407961473,1772934649469,-1000.0,0.00047148,30]
[407961474,1772934649480,-151.0,0.00047148,60]
[407961475,1772934649489,-500.0,0.00047148,120]
[407961476,1772934649499,-3252.0,0.00047148,120]
[407961477,1772934649509,-3474.0,0.00047148,120]
[407961478,1772934649519,-50000.0,0.00047148,30]
[407961479,1772934649530,-50000.0,0.00047148,30]
[407961480,1772934649539,-50000.0,0.00047148,30]
[407961481,1772934649551,-50000.0,0.00047148,30]
[407961482,1772934649561,-507.72825556,0.00047148,30]
[407961483,1772934649570,-45000.0,0.00047148,2]
[407961484,1772934649581,-5000.0,0.00047148,120]
[407961485,1772934649591,-20465.67258241,0.00047148,2]
[407961486,1772934649601,-300.0,0.00047148,120]
[407961487,1772934649611,-2942.63914128,0.00047148,120]
[407961488,1772934649621,-979.97120881,0.00047148,120]